Organisation Name,Organisation Code,Effective Date,Directorate,Service Category,Service Category URI,Supplier Name,Payment Date,Transaction Number,Net Amount,Irrecoverable VAT,Purpose_of_the_expenditure,Merchant Category
Wyre Council,http://opendatacommunities.org/doc/district-council/wyre,31/03/2019,People and Places,Planning and Development Servs,132C,Twitter,08/01/2019,133201,3.00,0.00,Twitter transaction - WBA,Promotions - General
Wyre Council,http://opendatacommunities.org/doc/district-council/wyre,31/03/2019,People and Places,Planning and Development Servs,132C,Linkedin,08/01/2019,133205,8.02,0.00,WBA Linkedin Advert,Promotions - General
Wyre Council,http://opendatacommunities.org/doc/district-council/wyre,31/03/2019,People and Places,Planning and Development Servs,132C,Twitter,08/01/2019,133196,3.00,0.00,Wyre Business Survey twitter ad,Promotions - General
Wyre Council,http://opendatacommunities.org/doc/district-council/wyre,31/03/2019,People and Places,Planning and Development Servs,132C,Twitter,08/01/2019,133198,14.58,0.00,Wyre Business Survey ad twitter,Promotions - General
Wyre Council,http://opendatacommunities.org/doc/district-council/wyre,31/03/2019,People and Places,Planning and Development Servs,132C,Linkedin,08/01/2019,133211,12.60,0.00,Accelerating Wyre ad Linkedin,Promotions - General
Wyre Council,http://opendatacommunities.org/doc/district-council/wyre,31/03/2019,People and Places,Cultural and Related Services,132A,BOOKER LTD,14/01/2019,133449,271.94,0.00,9 x Big time Cup Blackcurrant9 x Big time Cup Cola 7 x Big time Cup Raspberry 7 x Big time Cup Or,Kiosk stock
Wyre Council,http://opendatacommunities.org/doc/district-council/wyre,31/03/2019,People and Places,Cultural and Related Services,132A,BOOKER LTD,14/01/2019,133453,1.59,0.00,1 x BIG time Cola,Kiosk stock
Wyre Council,http://opendatacommunities.org/doc/district-council/wyre,31/03/2019,People and Places,Cultural and Related Services,132A,BOOKER LTD,14/01/2019,133451,15.16,0.00,1 x Big time cup Blackcurrant1 x Big Time Cup Cola 1 x Beef Space Raiders 1 x BBQ Space Raiders,Kiosk stock
Wyre Council,http://opendatacommunities.org/doc/district-council/wyre,31/03/2019,People and Places,Cultural and Related Services,132A,Rinkit,14/01/2019,133461,386.21,0.00,glass jugs,Purchase of Tools or Equipment
Wyre Council,http://opendatacommunities.org/doc/district-council/wyre,31/03/2019,People and Places,Cultural and Related Services,132A,asda,14/01/2019,133455,20.70,0.00,cleaning products,Cleaning Materials
Wyre Council,http://opendatacommunities.org/doc/district-council/wyre,31/03/2019,People and Places,Cultural and Related Services,132A,HOME BARGAINS,14/01/2019,133457,6.63,0.00,cleaning products,Cleaning Materials
Wyre Council,http://opendatacommunities.org/doc/district-council/wyre,31/03/2019,People and Places,Cultural and Related Services,132A,card factory,14/01/2019,133459,7.45,0.00,wedding day cards for couples,Stationery
Wyre Council,http://opendatacommunities.org/doc/district-council/wyre,31/03/2019,People and Places,Planning and Development Servs,132C,SCREWFIX,14/01/2019,133507,7.65,0.00,WINDER SCRAPERGORILLA GLUE  115ML,Maintenance of Tools or Equipment
Wyre Council,http://opendatacommunities.org/doc/district-council/wyre,31/03/2019,People and Places,Environmental Services,132B,ASDA,14/01/2019,133509,14.28,0.00,CLEANING MATERIALS,Cleaning Materials
Wyre Council,http://opendatacommunities.org/doc/district-council/wyre,31/03/2019,People and Places,Environmental Services,132B,JW FISH,14/01/2019,133487,16.65,0.00,SPIRIT LEVEL,Materials and Consumables
Wyre Council,http://opendatacommunities.org/doc/district-council/wyre,31/03/2019,People and Places,Environmental Services,132B,THE LOCK SHOP,14/01/2019,133505,197.83,0.00,MISC NEW LOCKS,Materials and Consumables
Wyre Council,http://opendatacommunities.org/doc/district-council/wyre,31/03/2019,People and Places,Cultural and Related Services,132A,WORKSHOP DIY,14/01/2019,133493,4.17,0.00,1 FENCELIFE R113441 KEY R 105811 SILICONE R112391,Responsive Building Maintenance
Wyre Council,http://opendatacommunities.org/doc/district-council/wyre,31/03/2019,People and Places,Planning and Development Servs,132C,WORKSHOP DIY,14/01/2019,133493,2.49,0.00,1 FENCELIFE R113441 KEY R 105811 SILICONE R112391,Responsive Building Maintenance
Wyre Council,http://opendatacommunities.org/doc/district-council/wyre,31/03/2019,People and Places,Highways,133B,SCREW FIX,14/01/2019,133491,8.49,0.00,EASYDRIVE SELF TAPPER SS ROUNDHEAD PK100,Naming of Streets
Wyre Council,http://opendatacommunities.org/doc/district-council/wyre,31/03/2019,People and Places,Highways,133B,WORKSHOP DIY,14/01/2019,133493,10.83,0.00,1 FENCELIFE R113441 KEY R 105811 SILICONE R112391,Naming of Streets
Wyre Council,http://opendatacommunities.org/doc/district-council/wyre,31/03/2019,People and Places,"Cultural, Environ and Planning",137B,BUILDERS SUPPLIES,14/01/2019,133481,76.48,0.00,2 EA 2440 X 1220 X 12 MM PINE PLY2440 X 1220 X18.MM PLY,Contract (New CCR)
Wyre Council,http://opendatacommunities.org/doc/district-council/wyre,31/03/2019,People and Places,Cultural and Related Services,132A,BUILDERS SUPPLIES,14/01/2019,133483,85.25,0.00,6.00 EA 1800 X 75 X 75MM TIMBER POST32 X 150MM GROOVED TANAL DECKING1 4 X 60MM REISSER CUTTER SCRE,Special Works
Wyre Council,http://opendatacommunities.org/doc/district-council/wyre,31/03/2019,People and Places,Planning and Development Servs,132C,THE LOCK SHOP,14/01/2019,133503,110.04,0.00,MISC LOCKS,Responsive Building Maintenance
Wyre Council,http://opendatacommunities.org/doc/district-council/wyre,31/03/2019,People and Places,Public Transport,133G,BUILDERS SUPPLIES,14/01/2019,133489,11.81,0.00,1 REISSER CUTTER  SCREW 1 4.0 X 35MM REISSER CUTTER SCREW 1 5.00MM REISSER CUTTER SCREW,Repairs to Non-WBC Buildings
Wyre Council,http://opendatacommunities.org/doc/district-council/wyre,31/03/2019,People and Places,Cultural and Related Services,132A,CROWN DECORATING CENTRE,14/01/2019,133495,44.82,0.00,PAINT,Amenity and Information Signs
Wyre Council,http://opendatacommunities.org/doc/district-council/wyre,31/03/2019,People and Places,Cultural and Related Services,132A,BUILDERS SUPPLIES (WEST COAST) LTD,14/01/2019,133471,28.80,0.00,TANALISED SWAN CARCASSING,Special Works
Wyre Council,http://opendatacommunities.org/doc/district-council/wyre,31/03/2019,People and Places,Cultural and Related Services,132A,BUILDERS SUPPLIES (WEST COAST) LTD,14/01/2019,133473,24.12,0.00,WOOD,Special Works
Wyre Council,http://opendatacommunities.org/doc/district-council/wyre,31/03/2019,People and Places,Environmental Services,132B,THE LOCKSHOP,14/01/2019,133501,92.16,0.00,LOCK,Materials and Consumables
Wyre Council,http://opendatacommunities.org/doc/district-council/wyre,31/03/2019,People and Places,Support Services,135B,SCREWFIX,14/01/2019,133475,16.66,0.00,SHOVEL,Purchase of Tools or Equipment
Wyre Council,http://opendatacommunities.org/doc/district-council/wyre,31/03/2019,People and Places,Support Services,135B,J W FISH LTD,23/04/2019,133485,5.99,0.00,EQUIPMENT,Materials and Consumables
Wyre Council,http://opendatacommunities.org/doc/district-council/wyre,31/03/2019,People and Places,Support Services,135B,BUILDERS SUPPLIES (WEST COAST) LTD,14/01/2019,133511,330.74,0.00,plastic,Materials and Consumables
Wyre Council,http://opendatacommunities.org/doc/district-council/wyre,31/03/2019,People and Places,Support Services,135B,BUILDERS SUPPLIES (WEST COAST) LTD,14/01/2019,133477,108.11,0.00,TOOLS AND EQUIPMENT,Materials and Consumables
Wyre Council,http://opendatacommunities.org/doc/district-council/wyre,31/03/2019,People and Places,Cultural and Related Services,132A,BUILDERS SUPPLIES,14/01/2019,133463,35.70,0.00,21.00 MT 25 X 100MM REDWOOD PSE FSC,Responsive Building Maintenance
Wyre Council,http://opendatacommunities.org/doc/district-council/wyre,31/03/2019,People and Places,Cultural and Related Services,132A,BUILDERS SUPPLIES,14/01/2019,133469,17.50,0.00,50 EA M10 X 150MM HEX HEAD COACH SCREW,Special Works
Wyre Council,http://opendatacommunities.org/doc/district-council/wyre,31/03/2019,People and Places,Cultural and Related Services,132A,BUILDERS SUPPLIES,14/01/2019,133467,135.06,0.00,12.00 EA 1800 X 75 X 75MM TIMBER POST25 X 100MM REDWOOD PSE FSC24 MT 47 X 75MM SCANT CERTIFIED1,Special Works
Wyre Council,http://opendatacommunities.org/doc/district-council/wyre,31/03/2019,People and Places,Planning and Development Servs,132C,WORKSHOP DIY,14/01/2019,133465,65.37,0.00,3 11MT BEECH PLANKS12MT EDGING,Responsive Building Maintenance
Wyre Council,http://opendatacommunities.org/doc/district-council/wyre,31/03/2019,People and Places,Planning and Development Servs,132C,JW FISH,14/01/2019,133479,10.32,0.00,1 BOX 200 SCREWS 9 PK HINGES 1 MULTI SCREWDRIVER,Responsive Building Maintenance
Wyre Council,http://opendatacommunities.org/doc/district-council/wyre,31/03/2019,People and Places,Planning and Development Servs,132C,CHADWICKS,14/01/2019,133499,5.40,0.00,20 EACH KEY TABS PLASTIC CLICK TYPE,Responsive Building Maintenance
Wyre Council,http://opendatacommunities.org/doc/district-council/wyre,31/03/2019,People and Places,Highways,133B,BUILDERS SUPPLIES,14/01/2019,133497,20.89,0.00,3 EA  25KG SILVER SAND2 EA 22 X 244 HANDSAW BAHOO,Maint. of Unadopted Assets - Engineers
Wyre Council,http://opendatacommunities.org/doc/district-council/wyre,31/03/2019,Resources,Support Services,135B,VIRGIN RAIL GROUP LTD,15/01/2019,133540,359.00,0.00,Virgin Rail Travel for C James for 17/01/19,Other Travelling Expenses
Wyre Council,http://opendatacommunities.org/doc/district-council/wyre,31/03/2019,Resources,Cultural and Related Services,132A,Deal Chaser,15/01/2019,133546,22.07,0.00,Deal Chaser order for Professional Megaphone for redacted,Purchase of Tools or Equipment
Wyre Council,http://opendatacommunities.org/doc/district-council/wyre,31/03/2019,Resources,Support Services,135B,Laundry Company,15/01/2019,133542,49.32,0.00,Laundry Company 4 x Vileda Ultramax Floor Mops for redacted,Purchase of Tools or Equipment
Wyre Council,http://opendatacommunities.org/doc/district-council/wyre,31/03/2019,Resources,Support Services,135B,YMCA,15/01/2019,133544,40.00,0.00,YMCA Spa on the Breck  Spa Journey for 2  X2  for prize winners,Consultants Fees
Wyre Council,http://opendatacommunities.org/doc/district-council/wyre,31/03/2019,Resources,Support Services,135B,YMCA,15/01/2019,133544,40.00,0.00,YMCA Spa on the Breck  Spa Journey for 2  X2  for prize winners,Event Hospitality
Wyre Council,http://opendatacommunities.org/doc/district-council/wyre,31/03/2019,Resources,Environmental Services,132B,AMAZON.CO.UK,15/01/2019,133548,23.06,0.00,Amazon order for 2X Verbatim 43533 DVD -R,Community Development Initiatives
Wyre Council,http://opendatacommunities.org/doc/district-council/wyre,31/03/2019,Resources,Support Services,135B,POST OFFICE LTD,22/01/2019,133750,150.00,0.00,Long Service Award Post Office One4all Gift Card -RS,Long Service Award
Wyre Council,http://opendatacommunities.org/doc/district-council/wyre,31/03/2019,Resources,Support Services,135B,POST OFFICE LTD,22/01/2019,133746,150.00,0.00,Long Service Award-Post Office One4all Gift Card-KS,Long Service Award
Wyre Council,http://opendatacommunities.org/doc/district-council/wyre,31/03/2019,Resources,Support Services,135B,Facebook,22/01/2019,133748,3.70,0.00,Facebook Advertising for various jobs,Advertising - Recruitment
Wyre Council,http://opendatacommunities.org/doc/district-council/wyre,31/03/2019,Resources,Cultural and Related Services,132A,Fire Protection Ltd,22/01/2019,133752,53.96,0.00,Replacement batteries for de-fib at Rossall Point ordered by redacted,Purchase of Tools or Equipment
Wyre Council,http://opendatacommunities.org/doc/district-council/wyre,31/03/2019,People and Places,Cultural and Related Services,132A,facebook,23/01/2019,133818,7.83,0.00,Homecoming boosted post - keep the home fires burning,Final Homecoming Project
Wyre Council,http://opendatacommunities.org/doc/district-council/wyre,31/03/2019,People and Places,Cultural and Related Services,132A,facebook,23/01/2019,133822,20.00,0.00,Homecoming facebook ad,Final Homecoming Project
Wyre Council,http://opendatacommunities.org/doc/district-council/wyre,31/03/2019,People and Places,Cultural and Related Services,132A,facebook,23/01/2019,133824,12.00,0.00,Marine Hall xmas market facebook ad,Advertising - General
Wyre Council,http://opendatacommunities.org/doc/district-council/wyre,31/03/2019,People and Places,Cultural and Related Services,132A,name-cheap.com,23/01/2019,133809,5.11,0.00,"Wedding, domain name website",Advertising - General
Wyre Council,http://opendatacommunities.org/doc/district-council/wyre,31/03/2019,People and Places,Cultural and Related Services,132A,facebook,23/01/2019,133830,9.47,0.00,Big girls don`t cry - facebook ad,Advertising - General
Wyre Council,http://opendatacommunities.org/doc/district-council/wyre,31/03/2019,People and Places,Cultural and Related Services,132A,facebook,23/01/2019,133828,10.00,0.00,A night at the musicals ad,Advertising - General
Wyre Council,http://opendatacommunities.org/doc/district-council/wyre,31/03/2019,People and Places,Cultural and Related Services,132A,facebook,23/01/2019,133834,6.55,0.00,Santa`s xmas party facebook ad,Advertising - General
Wyre Council,http://opendatacommunities.org/doc/district-council/wyre,31/03/2019,People and Places,Cultural and Related Services,132A,facebook,07/03/2019,133836,7.69,0.00,Santa`s grotto facebook ad,Special Events
Wyre Council,http://opendatacommunities.org/doc/district-council/wyre,31/03/2019,People and Places,Planning and Development Servs,132C,facebook,23/01/2019,133845,10.00,0.00,Bread and Butter Theatre Company- Festive fun,Promotions - General
Wyre Council,http://opendatacommunities.org/doc/district-council/wyre,31/03/2019,People and Places,Planning and Development Servs,132C,facebook,23/01/2019,133832,5.38,0.00,Santa`s sitting room ad,Promotions - General
Wyre Council,http://opendatacommunities.org/doc/district-council/wyre,31/03/2019,People and Places,Planning and Development Servs,132C,facebook,23/01/2019,133820,5.71,0.00,free builing wyre event ad,Event Hospitality
Wyre Council,http://opendatacommunities.org/doc/district-council/wyre,31/03/2019,People and Places,Planning and Development Servs,132C,facebook,23/01/2019,133826,20.00,0.00,Wyre Business Survey facebook ad,Promotions - General
Wyre Council,http://opendatacommunities.org/doc/district-council/wyre,31/03/2019,People and Places,Planning and Development Servs,132C,Linkedin,23/01/2019,133847,32.88,0.00,Accel wyre linkedin ad,Promotions - General
Wyre Council,http://opendatacommunities.org/doc/district-council/wyre,31/03/2019,People and Places,Support Services,135B,Biteable,24/01/2019,133888,11.69,0.00,Biteable video subscription,Corporate and Professional Subscriptions
Wyre Council,http://opendatacommunities.org/doc/district-council/wyre,31/03/2019,People and Places,Support Services,135B,Biteable,24/01/2019,133888,11.69,0.00,Biteable video subscription,Public Relations
Wyre Council,http://opendatacommunities.org/doc/district-council/wyre,31/03/2019,People and Places,Environmental Services,132B,Mailchimp,25/01/2019,133899,59.22,0.00,Mailchimp subscribers - green waste users,Promotions - General
Wyre Council,http://opendatacommunities.org/doc/district-council/wyre,31/03/2019,People and Places,Support Services,135B,CIM,30/01/2019,134022,145.00,0.00,Emily CIM,Technical Training
Wyre Council,http://opendatacommunities.org/doc/district-council/wyre,31/03/2019,People and Places,Support Services,135B,PRCA,30/01/2019,134020,135.00,0.00,PRCA LG Comms Academy,Technical Training
Wyre Council,http://opendatacommunities.org/doc/district-council/wyre,31/03/2019,People and Places,Support Services,135B,CIM,30/01/2019,134024,60.00,0.00,CIM Emily membership,Technical Training
Wyre Council,http://opendatacommunities.org/doc/district-council/wyre,31/03/2019,People and Places,Support Services,135B,Supreme pens,30/01/2019,134026,160.00,0.00,Branded pens,Public Relations
Wyre Council,http://opendatacommunities.org/doc/district-council/wyre,31/03/2019,Resources,Support Services,135B,Facebook,30/01/2019,134028,6.30,0.00,Facebook Advertising for various jobs,Advertising - Recruitment
Wyre Council,http://opendatacommunities.org/doc/district-council/wyre,31/03/2019,Resources,Cultural and Related Services,132A,The Defib Pad,31/01/2019,134116,80.40,0.00,The Defib Pad - 1x set of defib pads,Purchase of Tools or Equipment
Wyre Council,http://opendatacommunities.org/doc/district-council/wyre,31/03/2019,Resources,Cultural and Related Services,132A,Musikhaus,31/01/2019,134120,26.24,0.00,Amazon order - Musikhaus McGrey Megaphone,Purchase of Tools or Equipment
Wyre Council,http://opendatacommunities.org/doc/district-council/wyre,31/03/2019,Resources,Environmental Services,132B,Hot Pink Habberdashery,31/01/2019,134118,10.99,0.00,Hot Pink Habberdashery  - White webbing cotton 6 metres,Special Works
Wyre Council,http://opendatacommunities.org/doc/district-council/wyre,31/03/2019,Resources,"Cultural, Environ and Planning",137B,PortalPlanQuest,31/01/2019,134122,116.00,0.00,PortalPlanQuest  planning application fee  PP07500510v1UAU,Miscellaneous (New CCR)
Wyre Council,http://opendatacommunities.org/doc/district-council/wyre,31/03/2019,Resources,"Cultural, Environ and Planning",137B,PortalPlanQuest,31/01/2019,134124,16.67,0.00,PortalPlanQuest  planning application fee  PP07500510v1UAU   Service Fee,Miscellaneous (New CCR)
Wyre Council,http://opendatacommunities.org/doc/district-council/wyre,31/03/2019,Resources,Support Services,135B,VIRGIN RAIL GROUP LTD,31/01/2019,134112,337.50,0.00,Virgin Trains  Ticket to London Euston 14/02/19 for redacted,Other Travelling Expenses
Wyre Council,http://opendatacommunities.org/doc/district-council/wyre,31/03/2019,Resources,Support Services,135B,VIRGIN RAIL GROUP LTD,05/03/2019,134114,101.80,0.00,Virgin Trains  Ticket to London Waterloo 16/01/19 for redacted,Other Travelling Expenses
Wyre Council,http://opendatacommunities.org/doc/district-council/wyre,31/03/2019,Resources,Support Services,135B,VIRGIN RAIL GROUP LTD,31/01/2019,134106,91.70,0.00,Virgin Trains Preston - London 26/03/19  redacted,Other Travelling Expenses
Wyre Council,http://opendatacommunities.org/doc/district-council/wyre,31/03/2019,Resources,Support Services,135B,AMAZON.CO.UK,31/01/2019,134104,9.79,0.00,Amazon 2 x tide tables,Purchase of Publications
Wyre Council,http://opendatacommunities.org/doc/district-council/wyre,31/03/2019,Resources,Support Services,135B,CIPFA,31/01/2019,134108,342.00,0.00,CIPFA  3 places at Investing into the Future 27/02/19,Training - Non HR Controlled
Wyre Council,http://opendatacommunities.org/doc/district-council/wyre,31/03/2019,Resources,Support Services,135B,Place North West,31/01/2019,134110,60.00,0.00,Place North West - Lancashire Update x1 place,Technical Training
Wyre Council,http://opendatacommunities.org/doc/district-council/wyre,31/03/2019,Resources,Support Services,135B,VIRGIN RAIL GROUP LTD,31/01/2019,134098,337.50,0.00,Virgin Rail Tickets for redacted Preston to London 14/03/19,Other Travelling Expenses
Wyre Council,http://opendatacommunities.org/doc/district-council/wyre,31/03/2019,Resources,Support Services,135B,VIRGIN RAIL GROUP LTD,31/01/2019,134102,28.30,0.00,Virgin Rail tickets for redacted Preston to Carlisle 27/02/19,Other Travelling Expenses
Wyre Council,http://opendatacommunities.org/doc/district-council/wyre,31/03/2019,Resources,Support Services,135B,CURRYS,31/01/2019,134100,83.33,0.00,Curry`s  Fridge Freezer for Audit/HR,Stationery
Wyre Council,http://opendatacommunities.org/doc/district-council/wyre,31/03/2019,Resources,Support Services,135B,CURRYS,31/01/2019,134100,83.34,0.00,Curry`s  Fridge Freezer for Audit/HR,Stationery
Wyre Council,http://opendatacommunities.org/doc/district-council/wyre,31/03/2019,People and Places,Planning and Development Servs,132C,PORTAL PLAN QUEST LTD,07/02/2019,134283,132.00,0.00,PLANNING FEES,Materials and Consumables
Wyre Council,http://opendatacommunities.org/doc/district-council/wyre,31/03/2019,People and Places,Planning and Development Servs,132C,PORTAL PLAN QUEST LTD,07/02/2019,134285,16.67,0.00,PLANNDING FEES SERVICE CHARGE,Materials and Consumables
Wyre Council,http://opendatacommunities.org/doc/district-council/wyre,31/03/2019,People and Places,Support Services,135B,BLACKCIRCLES.COM,07/02/2019,134281,362.43,0.00,TYRES,Tyres
Wyre Council,http://opendatacommunities.org/doc/district-council/wyre,31/03/2019,People and Places,Cultural and Related Services,132A,P H TIMBER LTD,11/02/2019,134359,6.80,0.00,8x Bolts - 6.4020x Washers 0.40(above for Benches at WECP),Purchase of Tools or Equipment
Wyre Council,http://opendatacommunities.org/doc/district-council/wyre,31/03/2019,People and Places,Cultural and Related Services,132A,Screwfix,11/02/2019,134361,166.66,0.00,1xTwin Kit Dewalt Drill &amp; Impact Driver - 199.99(Above for use by Coast &amp; Countryside Serv,Purchase of Tools or Equipment
Wyre Council,http://opendatacommunities.org/doc/district-council/wyre,31/03/2019,People and Places,Cultural and Related Services,132A,Morrisons Supermarkets,11/02/2019,134367,11.25,0.00,9x cards(above for Volunteers),Materials and Consumables
Wyre Council,http://opendatacommunities.org/doc/district-council/wyre,31/03/2019,People and Places,Cultural and Related Services,132A,Morrisons Supermarkets,11/02/2019,134363,21.48,0.00,2x Coffee - 14.741x Sugar - 1.103x Tea - 5.645x Milk - 5.50(above for Volunteer BBQ &amp; Ga,Event Hospitality
Wyre Council,http://opendatacommunities.org/doc/district-council/wyre,31/03/2019,People and Places,Cultural and Related Services,132A,Morrisons Supermarkets,11/02/2019,134365,12.79,0.00,5x Squash - 4.856x Juice - 6.00(Above for Volunteer BBQ),Event Hospitality
Wyre Council,http://opendatacommunities.org/doc/district-council/wyre,31/03/2019,People and Places,Cultural and Related Services,132A,shopping@rspb.org.uk,11/02/2019,134369,70.79,0.00,Hide Clamp for telescope - 84.95(above for Telescope at Rossall Point Tower),Purchase of Tools or Equipment
Wyre Council,http://opendatacommunities.org/doc/district-council/wyre,31/03/2019,People and Places,Cultural and Related Services,132A,P H TIMBER LTD,11/02/2019,134377,30.50,0.00,5x 3.6x22x150 Timber - 17.822x Boxes Screws - 36.68(Above for Bird &amp; Bat box kits for Ranger,Conservation
Wyre Council,http://opendatacommunities.org/doc/district-council/wyre,31/03/2019,People and Places,Cultural and Related Services,132A,Fast Fix Workshop Ltd,11/02/2019,134383,127.88,0.00,2x Staple Guns - 35.982x Staple Gun - 27.9810x Packs of Staples - 23.102x Padlocks - 59.98(a,Purchase of Tools or Equipment
Wyre Council,http://opendatacommunities.org/doc/district-council/wyre,31/03/2019,People and Places,Cultural and Related Services,132A,Screwfix.com,11/02/2019,134381,224.92,0.00,6x Fiskars Hedge Shears - 179.943x Fiskars Anvil loppers - 89.97(Above for vegetation control of,Purchase of Tools or Equipment
Wyre Council,http://opendatacommunities.org/doc/district-council/wyre,31/03/2019,People and Places,Cultural and Related Services,132A,Burnside Garden Centre,11/02/2019,134391,13.32,0.00,2x Pair Hand Leaf Grabbers - 15.98,Purchase of Tools or Equipment
Wyre Council,http://opendatacommunities.org/doc/district-council/wyre,31/03/2019,People and Places,Cultural and Related Services,132A,C & C SUPPLIES COLLINSON LTD,11/02/2019,134373,16.58,0.00,10 pairs of Anti slip Gloves - 19.90,Protective Clothing
Wyre Council,http://opendatacommunities.org/doc/district-council/wyre,31/03/2019,People and Places,Cultural and Related Services,132A,P H TIMBER LTD,11/02/2019,134389,82.22,0.00,3x 4.8x100x100 Posts - 47.803x 4.8x50x150 - 34.42(Above for Kissing Gate at Bleasdale),Materials and Consumables
Wyre Council,http://opendatacommunities.org/doc/district-council/wyre,31/03/2019,People and Places,Cultural and Related Services,132A,Hobbycraft.co.uk,11/02/2019,134379,68.75,0.00,10 x Pots Acryllic Paint - 24.004 Packs Marker Pens - 52.00(Above for the Ranger Craft Day Activ,Materials and Consumables
Wyre Council,http://opendatacommunities.org/doc/district-council/wyre,31/03/2019,People and Places,Cultural and Related Services,132A,THE PLANT PLACE,11/02/2019,134387,62.86,0.00,3x Seed Birdfeeders - 38.973x Nut Birdfeeders - -44.85(above for use at Wyre Estuary Country Par,Conservation
Wyre Council,http://opendatacommunities.org/doc/district-council/wyre,31/03/2019,People and Places,Cultural and Related Services,132A,P H TIMBER LTD,11/02/2019,134375,48.26,0.00,4x 3.6x22x180 Timber - 14.265x 4.2x22x225 Timber - 34.00(above to make Bird &amp; Bat Box kits f,Conservation
Wyre Council,http://opendatacommunities.org/doc/district-council/wyre,31/03/2019,People and Places,Cultural and Related Services,132A,Hobbycraft.co.uk,11/02/2019,134385,130.42,0.00,"1 pk Card-5.00,1 Pk Googly eyes- 4.00,24x coloured Paints-111.00,1x Pk 25 brushes-5.00,2x Pk Cre",Materials and Consumables
Wyre Council,http://opendatacommunities.org/doc/district-council/wyre,31/03/2019,People and Places,Cultural and Related Services,132A,Morrisons Supermarket,11/02/2019,134397,22.08,0.00,9x Paper plates - 9.003x Kitchen Foil - 7.5010x Card - 10.00(above for craft activities on Ran,Materials and Consumables
Wyre Council,http://opendatacommunities.org/doc/district-council/wyre,31/03/2019,People and Places,Cultural and Related Services,132A,BUILDERS SUPPLIES (WEST COAST) LTD,11/02/2019,134371,99.15,0.00,1Ton - 40mm to Dust Stone - 43.35(above for Comply Avenue PROW gate)12x Flags - 55.80(above for,Materials and Consumables
Wyre Council,http://opendatacommunities.org/doc/district-council/wyre,31/03/2019,People and Places,Cultural and Related Services,132A,Morrisons Supermarkets,11/02/2019,134399,27.40,0.00,2x Teabags - 8.003x Milk - 3.302x Coffee - 14.742x Sugar - 1.36(above for Family Craft Day a,Event Hospitality
Wyre Council,http://opendatacommunities.org/doc/district-council/wyre,31/03/2019,People and Places,Cultural and Related Services,132A,Morrissons Supermarkets,11/02/2019,134395,9.00,0.00,12 Pumpkins - 9.00(Above for Halloween event - WECP),Materials and Consumables
Wyre Council,http://opendatacommunities.org/doc/district-council/wyre,31/03/2019,People and Places,Cultural and Related Services,132A,Morrisons Supermarkets,11/02/2019,134393,10.00,0.00,12 Pumpkin Carving Kits - 12.00(above for Halloween Event at WECP),Materials and Consumables
Wyre Council,http://opendatacommunities.org/doc/district-council/wyre,31/03/2019,People and Places,Cultural and Related Services,132A,THE PLANT PLACE,11/02/2019,134407,28.94,0.00,Plants - 28.94(above for WECP Cottage Garden &amp; Sensory Garden),Conservation
Wyre Council,http://opendatacommunities.org/doc/district-council/wyre,31/03/2019,People and Places,Cultural and Related Services,132A,THE PLANT PLACE,11/02/2019,134405,92.33,0.00,Compost - 20.00Spade - 37.99Garden Twine - 3.99Secateur -  5.99Rake - 10.99Bulbs - 29.85,Conservation
Wyre Council,http://opendatacommunities.org/doc/district-council/wyre,31/03/2019,People and Places,Cultural and Related Services,132A,B & Q,11/02/2019,134451,5.48,0.00,Fire Assembly Point Sign - 6.58(Above for erection at WECP),Purchase of Tools or Equipment
Wyre Council,http://opendatacommunities.org/doc/district-council/wyre,31/03/2019,People and Places,Cultural and Related Services,132A,Burnside Garden Centre,11/02/2019,134449,28.30,0.00,4x Long Handled Bulb Planters - 33.96(Above for Bulb Planting activities on Countryside sites),Purchase of Tools or Equipment
Wyre Council,http://opendatacommunities.org/doc/district-council/wyre,31/03/2019,People and Places,Cultural and Related Services,132A,ARGOS,11/02/2019,134443,83.32,0.00,Kettle - 19.99(above for WECP Brew Kitchen)Mini Fridge - 79.99(Above for Rossall Point Tower Br,Purchase of Tools or Equipment
Wyre Council,http://opendatacommunities.org/doc/district-council/wyre,31/03/2019,People and Places,Cultural and Related Services,132A,Fast Fix Workshop Ltd,11/02/2019,134403,14.99,0.00,Staple Gun - 17.99(above for use on site patrols),Purchase of Tools or Equipment
Wyre Council,http://opendatacommunities.org/doc/district-council/wyre,31/03/2019,People and Places,Cultural and Related Services,132A,Fast Fix Workshop Ltd,11/02/2019,134417,58.32,0.00,Socket Set - 69.99(Above for use on Practical tasks),Purchase of Tools or Equipment
Wyre Council,http://opendatacommunities.org/doc/district-council/wyre,31/03/2019,People and Places,Cultural and Related Services,132A,Screwfix Direct Ltd,11/02/2019,134439,13.32,0.00,1 Drill Bit Sharpener - 15.99(Above for maintenance of Coast &amp; Countryside Drill Bits),Purchase of Tools or Equipment
Wyre Council,http://opendatacommunities.org/doc/district-council/wyre,31/03/2019,People and Places,Cultural and Related Services,132A,Home Bargins,11/02/2019,134437,20.82,0.00,1x Oil Heater - 24.99(above for Xmas Fayre and Riverside Room Use),Purchase of Tools or Equipment
Wyre Council,http://opendatacommunities.org/doc/district-council/wyre,31/03/2019,People and Places,Cultural and Related Services,132A,Screwfix Direct Ltd,11/02/2019,134425,37.49,0.00,Turbo Heater - 44.99(above for Rossall Point Tower),Purchase of Tools or Equipment
Wyre Council,http://opendatacommunities.org/doc/district-council/wyre,31/03/2019,People and Places,Cultural and Related Services,132A,HUWS GRAY LTD,11/02/2019,134413,42.96,0.00,4 Gauntlets - 29.961x Pack of Gripper Gloves - 13.00(Above PPE for Volunteers),Protective Clothing
Wyre Council,http://opendatacommunities.org/doc/district-council/wyre,31/03/2019,People and Places,Cultural and Related Services,132A,C & C SUPPLIES COLLINSON LTD,11/02/2019,134409,45.13,0.00,15x Gloves - 54.16(above PPE for Volunteer Practicals),Protective Clothing
Wyre Council,http://opendatacommunities.org/doc/district-council/wyre,31/03/2019,People and Places,Cultural and Related Services,132A,HUWS GRAY LTD,11/02/2019,134411,80.69,0.00,1x Sheet Marine Ply - 59.096x Pack Stainless Steel Screws - 21.60(Above for Rossall Point Tower,Materials and Consumables
Wyre Council,http://opendatacommunities.org/doc/district-council/wyre,31/03/2019,People and Places,Cultural and Related Services,132A,Fast Fix Workshop Ltd,11/02/2019,134415,7.88,0.00,No Nails Glue - 3.29Stikall Glue - 6.99(above for Rossall Point Tower Project),Materials and Consumables
Wyre Council,http://opendatacommunities.org/doc/district-council/wyre,31/03/2019,People and Places,Cultural and Related Services,132A,www.foursquare-healthcare.co.u,11/02/2019,134419,52.75,0.00,2 pairs of Defib Pads - 63.30(above for Rossall Point Tower Defib),Materials and Consumables
Wyre Council,http://opendatacommunities.org/doc/district-council/wyre,31/03/2019,People and Places,Cultural and Related Services,132A,Home Bargins,11/02/2019,134423,11.65,0.00,Elf Suit - 6.99Santa Suit - 6.99(above for WECP Xmas Fayre),Materials and Consumables
Wyre Council,http://opendatacommunities.org/doc/district-council/wyre,31/03/2019,People and Places,Cultural and Related Services,132A,HUWS GRAY LTD,11/02/2019,134421,64.72,0.00,2 Rolls of Netting - 64.72(above for WECP Boardwalk in Outdoor Classroom),Materials and Consumables
Wyre Council,http://opendatacommunities.org/doc/district-council/wyre,31/03/2019,People and Places,Cultural and Related Services,132A,Home bargins,11/02/2019,134435,64.96,0.00,2x Bag - 1.9850x Selection Box - 44.502x Tinsel - 7.74Napkins - 8.85Table Cloth - 8.90Batt,Materials and Consumables
Wyre Council,http://opendatacommunities.org/doc/district-council/wyre,31/03/2019,People and Places,Cultural and Related Services,132A,Fast Fix Workshop Ltd,11/02/2019,134401,18.72,0.00,4kg 4&quot; Nails - 22.47(above for Volunteer Practicals),Materials and Consumables
Wyre Council,http://opendatacommunities.org/doc/district-council/wyre,31/03/2019,People and Places,Cultural and Related Services,132A,ASDA STORES LTD,11/02/2019,134441,27.32,0.00,11x Non Alchoholic Red Wine - 32.78(above for WECP Xmas Fayre &amp; New Year Event at Rossall Poin,Event Hospitality
Wyre Council,http://opendatacommunities.org/doc/district-council/wyre,31/03/2019,People and Places,Cultural and Related Services,132A,Morrisons Supermarket,11/02/2019,134447,10.00,0.00,Milk - 1.15Oranges - 1.65Sugar - 2.50Lemon - 1.00Cinnamon - 1.61Nutmeg - 1.60Cloves - 0,Event Hospitality
Wyre Council,http://opendatacommunities.org/doc/district-council/wyre,31/03/2019,People and Places,Cultural and Related Services,132A,ASDA STORES LTD,11/02/2019,134445,7.45,0.00,3x Non Alchoholic Wine - 8.94(above for New Year Event at Rossall Point Tower),Event Hospitality
Wyre Council,http://opendatacommunities.org/doc/district-council/wyre,31/03/2019,People and Places,Cultural and Related Services,132A,Morrisons Supermarkets,11/02/2019,134431,41.21,0.00,Milk - 5.75Sugar - 1.36Coffee - 14.74Mince Pies - 6.00Hot Chocolate - 5.36Tea - 6.00Mull,Event Hospitality
Wyre Council,http://opendatacommunities.org/doc/district-council/wyre,31/03/2019,People and Places,Cultural and Related Services,132A,Morrisons Supermarket,11/02/2019,134433,9.57,0.00,Ribena - 7.48Quality Street - 4.00(above for WECP Xmas Fayre),Event Hospitality
Wyre Council,http://opendatacommunities.org/doc/district-council/wyre,31/03/2019,People and Places,Cultural and Related Services,132A,Morrisons Supermarket,11/02/2019,134427,37.10,0.00,Milk - 4.60Tea - 9.00Sugar - 1.36Coffee - 14.74Mince Pies - 4.00Biscuits - 3.70(Above fo,Event Hospitality
Wyre Council,http://opendatacommunities.org/doc/district-council/wyre,31/03/2019,People and Places,Cultural and Related Services,132A,Morrisons Supermarket,11/02/2019,134429,5.00,0.00,2 Box Choc Biscuits - 4.002 Juice - 2.48(above for Wyre &amp; Myerscough Hedgelaying Competition,Event Hospitality
Wyre Council,http://opendatacommunities.org/doc/district-council/wyre,31/03/2019,People and Places,Cultural and Related Services,132A,HUWS GRAY LTD,11/02/2019,134453,28.08,0.00,3 packs of 4&quot; Nails(Above for Volunteer Practical Work),Materials and Consumables
Wyre Council,http://opendatacommunities.org/doc/district-council/wyre,31/03/2019,People and Places,Cultural and Related Services,132A,HUWS GRAY LTD,11/02/2019,134467,27.90,0.00,2x Auger Drill Bits - 27.90(Above for use in Power Drills on Practicals),Purchase of Tools or Equipment
Wyre Council,http://opendatacommunities.org/doc/district-council/wyre,31/03/2019,People and Places,Cultural and Related Services,132A,Screwfix Direct LTD,11/02/2019,134463,166.66,0.00,1x Cordless Dewalt SDS Drill - 199.99(Above for Practical Activities across Borough),Purchase of Tools or Equipment
Wyre Council,http://opendatacommunities.org/doc/district-council/wyre,31/03/2019,People and Places,Cultural and Related Services,132A,Screwfix direct Ltd,11/02/2019,134461,49.92,0.00,10x Thermal grip Gloves - 59.90(above for Volunteers at Rossall Point Tower),Protective Clothing
Wyre Council,http://opendatacommunities.org/doc/district-council/wyre,31/03/2019,People and Places,Cultural and Related Services,132A,HUWS GRAY LTD,11/02/2019,134465,73.90,0.00,10x 2&quot; diam. 8` round posts - 17.7050x 1.2m Hedge Laying Stake - 22.504x 1.2mx100x100 Birds,Materials and Consumables
Wyre Council,http://opendatacommunities.org/doc/district-council/wyre,31/03/2019,People and Places,Cultural and Related Services,132A,C & C SUPPLIES COLLINSON LTD,11/02/2019,134455,30.60,0.00,4x Rolls of Red &amp; White Barrier Tape - 36.72(Above for Bleasdale Community Woodland job &amp;,Materials and Consumables
Wyre Council,http://opendatacommunities.org/doc/district-council/wyre,31/03/2019,People and Places,Cultural and Related Services,132A,foursquare-healthcare.co.uk,11/02/2019,134459,61.95,0.00,Spare Batteries for Zoll AED Plus Defibrillator - 59.00(Above for Rossall Point Tower Defib),Materials and Consumables
Wyre Council,http://opendatacommunities.org/doc/district-council/wyre,31/03/2019,People and Places,Cultural and Related Services,132A,GARSTANG TIMBER & PLYWOOD LTD,11/02/2019,134457,33.96,0.00,4 Cans of Marker Spray - 40.75(Above for Bleasdale Community Woodland job and general woodland man,Materials and Consumables
Wyre Council,http://opendatacommunities.org/doc/district-council/wyre,31/03/2019,People and Places,Cultural and Related Services,132A,HUWS GRAY LTD,11/02/2019,134471,70.41,0.00,1x Gate Hook to Bolt - 7.741x Gate Hook to Drive - 4.624x Bags Postfix - 16.401x Gate Post 2.1,Public Footpaths/Rights Of Way
Wyre Council,http://opendatacommunities.org/doc/district-council/wyre,31/03/2019,People and Places,Cultural and Related Services,132A,HUWS GRAY LTD,11/02/2019,134469,187.49,0.00,1x sheet Plywood - 10.146x 2.4x25x25 rails - 7.34(above for Litter Hoop Storage)2x Bench Seat K,Materials and Consumables
Wyre Council,http://opendatacommunities.org/doc/district-council/wyre,31/03/2019,People and Places,Highways,133B,AITCH TOOLS & FASTENERS LTD,18/02/2019,134679,12.18,0.00,Tools and Equipment,Naming of Streets
Wyre Council,http://opendatacommunities.org/doc/district-council/wyre,31/03/2019,People and Places,Support Services,135B,AITCH TOOLS & FASTENERS LTD,18/02/2019,134679,60.00,0.00,Tools and Equipment,Purchase of Tools or Equipment
Wyre Council,http://opendatacommunities.org/doc/district-council/wyre,31/03/2019,People and Places,"Cultural, Environ and Planning",137B,AMAZON.CO.UK,18/02/2019,134677,39.98,0.00,FIRE EXTINGUISER,"Plant, equipment and furniture"
Wyre Council,http://opendatacommunities.org/doc/district-council/wyre,31/03/2019,People and Places,"Cultural, Environ and Planning",137B,AITCH TOOLS & FASTENERS LTD,18/02/2019,134679,27.50,0.00,Tools and Equipment,Contract (New CCR)
Wyre Council,http://opendatacommunities.org/doc/district-council/wyre,31/03/2019,People and Places,Highways,133B,HUWS GRAY LTD,18/02/2019,134631,416.67,0.00,Timber,Naming of Streets
Wyre Council,http://opendatacommunities.org/doc/district-council/wyre,31/03/2019,People and Places,Highways,133B,HUWS GRAY LTD,18/02/2019,134663,13.08,0.00,Timber,Naming of Streets
Wyre Council,http://opendatacommunities.org/doc/district-council/wyre,31/03/2019,People and Places,Cultural and Related Services,132A,BUILDERS SUPPLIES (WEST COAST) LTD,18/02/2019,134615,69.74,0.00,Wood and Screws,"Walls, Fencing, Gates & Railings (NonBM)"
Wyre Council,http://opendatacommunities.org/doc/district-council/wyre,31/03/2019,People and Places,Environmental Services,132B,FLEETWOOD HAVEN MARINA,18/02/2019,134665,40.00,0.00,Tide Tables,Materials and Consumables
Wyre Council,http://opendatacommunities.org/doc/district-council/wyre,31/03/2019,People and Places,Environmental Services,132B,BUILDERS SUPPLIES (WEST COAST) LTD,18/02/2019,134661,710.75,0.00,Mesh and Cut Strip,Materials and Consumables
Wyre Council,http://opendatacommunities.org/doc/district-council/wyre,31/03/2019,People and Places,Environmental Services,132B,SHELL,18/02/2019,134657,20.66,0.00,Petrol,Petrol
Wyre Council,http://opendatacommunities.org/doc/district-council/wyre,31/03/2019,People and Places,Highways,133B,HUWS GRAY LTD,18/02/2019,134633,54.67,0.00,Plywood,Naming of Streets
Wyre Council,http://opendatacommunities.org/doc/district-council/wyre,31/03/2019,People and Places,Support Services,135B,BUILDERS SUPPLIES (WEST COAST) LTD,18/02/2019,134653,45.00,0.00,Flag stones,Materials and Consumables
Wyre Council,http://opendatacommunities.org/doc/district-council/wyre,31/03/2019,People and Places,Support Services,135B,SCREWFIX,18/02/2019,134655,6.91,0.00,BATTERY,Purchase of Tools or Equipment
Wyre Council,http://opendatacommunities.org/doc/district-council/wyre,31/03/2019,People and Places,Support Services,135B,FURNESS FLUID POWER LTDQ,18/02/2019,134671,155.06,0.00,Web Sling,Purchase of Tools or Equipment
Wyre Council,http://opendatacommunities.org/doc/district-council/wyre,31/03/2019,People and Places,Environmental Services,132B,AITCH TOOLS & FASTENERS LTD,18/02/2019,134675,160.72,0.00,"Spray. disc, padlock",Materials and Consumables
Wyre Council,http://opendatacommunities.org/doc/district-council/wyre,31/03/2019,People and Places,Environmental Services,132B,THE LOCKSHOP,18/02/2019,134659,115.20,0.00,Misc,Materials and Consumables
Wyre Council,http://opendatacommunities.org/doc/district-council/wyre,31/03/2019,People and Places,Environmental Services,132B,AITCH TOOLS & FASTENERS LTD,18/02/2019,134647,30.13,0.00,Screws/Drill,Materials and Consumables
Wyre Council,http://opendatacommunities.org/doc/district-council/wyre,31/03/2019,People and Places,Environmental Services,132B,BUILDERS SUPPLIES (WEST COAST) LTD,18/02/2019,134625,34.46,0.00,Cleaner and Foam,Materials and Consumables
Wyre Council,http://opendatacommunities.org/doc/district-council/wyre,31/03/2019,People and Places,Planning and Development Servs,132C,Fast Fix Workshop Ltd,18/02/2019,134621,84.28,0.00,Shelving,Responsive Building Maintenance
Wyre Council,http://opendatacommunities.org/doc/district-council/wyre,31/03/2019,People and Places,Planning and Development Servs,132C,J W FISH LTD,18/02/2019,134617,23.48,0.00,"Tubes, sockets and Blocks",Responsive Building Maintenance
Wyre Council,http://opendatacommunities.org/doc/district-council/wyre,31/03/2019,People and Places,Planning and Development Servs,132C,J W FISH LTD,18/02/2019,134637,8.33,0.00,KEYS,Responsive Building Maintenance
Wyre Council,http://opendatacommunities.org/doc/district-council/wyre,31/03/2019,People and Places,Planning and Development Servs,132C,J W FISH LTD,18/02/2019,134635,4.37,0.00,KEY,Responsive Building Maintenance
Wyre Council,http://opendatacommunities.org/doc/district-council/wyre,31/03/2019,People and Places,Planning and Development Servs,132C,THE LOCKSHOP,18/02/2019,134659,77.50,0.00,Misc,Responsive Building Maintenance
Wyre Council,http://opendatacommunities.org/doc/district-council/wyre,31/03/2019,People and Places,Planning and Development Servs,132C,SCREWFIX,18/02/2019,134641,116.66,0.00,PUSH BUTTON LOCK,Responsive Building Maintenance
Wyre Council,http://opendatacommunities.org/doc/district-council/wyre,31/03/2019,People and Places,Highways,133B,AITCH TOOLS & FASTENERS LTD,18/02/2019,134647,32.46,0.00,Screws/Drill,Naming of Streets
Wyre Council,http://opendatacommunities.org/doc/district-council/wyre,31/03/2019,People and Places,Parking Services,133F,AITCH TOOLS & FASTENERS LTD,18/02/2019,134647,167.88,0.00,Screws/Drill,"Paths, Roads and Car Park Mtnce Annual"
Wyre Council,http://opendatacommunities.org/doc/district-council/wyre,31/03/2019,People and Places,Public Transport,133G,SCREWFIX,18/02/2019,134649,16.64,0.00,FOAM GUN,Landing Stage Maintenance
Wyre Council,http://opendatacommunities.org/doc/district-council/wyre,31/03/2019,People and Places,Public Transport,133G,BUILDERS SUPPLIES (WEST COAST) LTD,18/02/2019,134669,716.65,0.00,MESH,Landing Stage Maintenance
Wyre Council,http://opendatacommunities.org/doc/district-council/wyre,31/03/2019,People and Places,Public Transport,133G,BUILDERS SUPPLIES (WEST COAST) LTD,18/02/2019,134623,13.25,0.00,Screws and Washers,Landing Stage Maintenance
Wyre Council,http://opendatacommunities.org/doc/district-council/wyre,31/03/2019,People and Places,Support Services,135B,VANKIT,18/02/2019,134673,930.52,0.00,VAN INTERIOR,Daywork Materials (Excl.Tyres)
Wyre Council,http://opendatacommunities.org/doc/district-council/wyre,31/03/2019,People and Places,Support Services,135B,AITCH TOOLS & FASTENERS LTD,18/02/2019,134675,238.00,0.00,"Spray. disc, padlock",Purchase of Tools or Equipment
Wyre Council,http://opendatacommunities.org/doc/district-council/wyre,31/03/2019,People and Places,Support Services,135B,SCREWFIX,18/02/2019,134639,6.24,0.00,HEX AND BALL,Purchase of Tools or Equipment
Wyre Council,http://opendatacommunities.org/doc/district-council/wyre,31/03/2019,People and Places,Support Services,135B,AITCH TOOLS & FASTENERS LTD,18/02/2019,134647,75.10,0.00,Screws/Drill,Purchase of Tools or Equipment
Wyre Council,http://opendatacommunities.org/doc/district-council/wyre,31/03/2019,People and Places,Support Services,135B,BLACKPOOL POWER TOOLS,18/02/2019,134651,31.50,0.00,CABLE,Maintenance of Tools or Equipment
Wyre Council,http://opendatacommunities.org/doc/district-council/wyre,31/03/2019,People and Places,Support Services,135B,SCREWFIX,18/02/2019,134643,16.66,0.00,Tyre Inflator,Purchase of Tools or Equipment
Wyre Council,http://opendatacommunities.org/doc/district-council/wyre,31/03/2019,People and Places,Support Services,135B,SCREWFIX,18/02/2019,134645,9.99,0.00,TIG WELSING,Protective Clothing
Wyre Council,http://opendatacommunities.org/doc/district-council/wyre,31/03/2019,People and Places,Support Services,135B,SCREWFIX,18/02/2019,134639,22.49,0.00,HEX AND BALL,Protective Clothing
Wyre Council,http://opendatacommunities.org/doc/district-council/wyre,31/03/2019,People and Places,Support Services,135B,BUILDERS SUPPLIES (WEST COAST) LTD,18/02/2019,134619,98.23,0.00,Carcassing,Materials and Consumables
Wyre Council,http://opendatacommunities.org/doc/district-council/wyre,31/03/2019,People and Places,Environmental Services,132B,ALLPLAS.CO.UK,18/02/2019,134667,156.50,0.00, 2 TARPAULIN COVERS 3M X 5M BLUE,Sand Bags and Flooding Equipment
Wyre Council,http://opendatacommunities.org/doc/district-council/wyre,31/03/2019,People and Places,Public Transport,133G,BUILDERS SUPPLIES,18/02/2019,134629,106.78,0.00,4EA 2440 X 1220 X 12.0MM PINE PLY1 40MM TYPE 1 BULK BAG1 DEWALT EXTREME TORSION IMPACT BITS1 WIEA,Landing Stage Maintenance
Wyre Council,http://opendatacommunities.org/doc/district-council/wyre,31/03/2019,People and Places,Support Services,135B,WYRE BUILDING SUPPLIES,18/02/2019,134627,12.00,0.00,GRIT SAND,Materials and Consumables
Wyre Council,http://opendatacommunities.org/doc/district-council/wyre,31/03/2019,People and Places,Support Services,135B,AUTOBITZ,07/03/2019,135309,6.50,0.00,Number Plate,Fuel
Wyre Council,http://opendatacommunities.org/doc/district-council/wyre,31/03/2019,People and Places,Support Services,135B,ANDREW CURRAN LTD,07/03/2019,135307,12.97,0.00,DISCS,Daywork Materials (Excl.Tyres)
Wyre Council,http://opendatacommunities.org/doc/district-council/wyre,31/03/2019,People and Places,Support Services,135B,Amazon,11/03/2019,135296,18.25,0.00,Ipad cover,Technical Training
Wyre Council,http://opendatacommunities.org/doc/district-council/wyre,31/03/2019,People and Places,Cultural and Related Services,132A,Auto Bitz,07/03/2019,135337,2.88,0.00,Rad Seal,Daywork Materials (Excl.Tyres)
Wyre Council,http://opendatacommunities.org/doc/district-council/wyre,31/03/2019,People and Places,Environmental Services,132B,Euro Car Parts Ltd,07/03/2019,135341,200.97,0.00,SAC Clutch KitFlywheel BearingConcentric Clave Cylinder,Daywork Materials (Excl.Tyres)
Wyre Council,http://opendatacommunities.org/doc/district-council/wyre,31/03/2019,People and Places,Environmental Services,132B,SNAP-ON,07/03/2019,135339,229.00,0.00,12V battery booster pack,Purchase of Tools or Equipment
Wyre Council,http://opendatacommunities.org/doc/district-council/wyre,31/03/2019,People and Places,Planning and Development Servs,132C,Linde Material Handling UK Ltd,07/03/2019,135333,148.38,0.00,Parts,Daywork Materials (Excl.Tyres)
Wyre Council,http://opendatacommunities.org/doc/district-council/wyre,31/03/2019,People and Places,Planning and Development Servs,132C,DVSA,07/03/2019,135311,410.00,0.00,MOT slots,Licences/MOT Certificates
Wyre Council,http://opendatacommunities.org/doc/district-council/wyre,31/03/2019,People and Places,Housing General Fund,134A,T7 Design Ltd,07/03/2019,135323,67.08,0.00,SPAL Radiator Fan,Daywork Materials (Excl.Tyres)
Wyre Council,http://opendatacommunities.org/doc/district-council/wyre,31/03/2019,People and Places,Support Services,135B,DVLA,07/03/2019,135319,252.50,0.00,Vehicle Tax - PF10NUM,Licences/MOT Certificates
Wyre Council,http://opendatacommunities.org/doc/district-council/wyre,31/03/2019,People and Places,Support Services,135B,Eriks Industrial Services Ltd,07/03/2019,135317,137.82,0.00,Metric taper roller bearing,Materials and Consumables
Wyre Council,http://opendatacommunities.org/doc/district-council/wyre,31/03/2019,People and Places,Support Services,135B,ABC Awards,07/03/2019,135325,35.00,0.00,Skills and Education Group awards - MOT Annual Test,Technical Training
Wyre Council,http://opendatacommunities.org/doc/district-council/wyre,31/03/2019,People and Places,Support Services,135B,ABC Awards,07/03/2019,135327,35.00,0.00,Skills and Education Group awards - MOT Annual Test,Technical Training
Wyre Council,http://opendatacommunities.org/doc/district-council/wyre,31/03/2019,People and Places,Support Services,135B,ABC Awards,07/03/2019,135329,35.00,0.00,Skills and Education Group awards - MOT Annual Test,Technical Training
Wyre Council,http://opendatacommunities.org/doc/district-council/wyre,31/03/2019,People and Places,Support Services,135B,ABC Awards,07/03/2019,135331,35.00,0.00,Skills and Education Group awards - MOT Annual Test,Technical Training
Wyre Council,http://opendatacommunities.org/doc/district-council/wyre,31/03/2019,People and Places,Support Services,135B,DVLA,07/03/2019,135321,252.50,0.00,Vehicle Tax PJ09 PXT,Licences/MOT Certificates
Wyre Council,http://opendatacommunities.org/doc/district-council/wyre,31/03/2019,People and Places,Support Services,135B,Kita H Ltd,07/03/2019,135313,74.00,0.00,power probe solder kit,Purchase of Tools or Equipment
Wyre Council,http://opendatacommunities.org/doc/district-council/wyre,31/03/2019,People and Places,Support Services,135B,Screwfix,07/03/2019,135315,8.32,0.00,Tow Strap,Purchase of Tools or Equipment
Wyre Council,http://opendatacommunities.org/doc/district-council/wyre,31/03/2019,People and Places,Support Services,135B,MP Brands - Waxacar,07/03/2019,135335,27.49,0.00,Headlight lamps and tail lights clear clarity lens restoration kit,Materials and Consumables
Wyre Council,http://opendatacommunities.org/doc/district-council/wyre,31/03/2019,People and Places,Cultural and Related Services,132A,facebook,07/03/2019,135278,20.00,0.00,Facebook boosted post Marine Hall,Advertising - General
Wyre Council,http://opendatacommunities.org/doc/district-council/wyre,31/03/2019,People and Places,Cultural and Related Services,132A,facebook,07/03/2019,135280,20.00,0.00,Facebook boosted post Marine Hall,Advertising - General
Wyre Council,http://opendatacommunities.org/doc/district-council/wyre,31/03/2019,People and Places,Cultural and Related Services,132A,facebook,07/03/2019,135282,25.00,0.00,facebook boosted post,Advertising - General
Wyre Council,http://opendatacommunities.org/doc/district-council/wyre,31/03/2019,People and Places,Cultural and Related Services,132A,facebook,07/03/2019,135284,5.86,0.00,facebook boosted post,Advertising - General
Wyre Council,http://opendatacommunities.org/doc/district-council/wyre,31/03/2019,People and Places,Cultural and Related Services,132A,facebook,07/03/2019,135286,40.00,0.00,facebook boosted post,Advertising - General
Wyre Council,http://opendatacommunities.org/doc/district-council/wyre,31/03/2019,People and Places,Cultural and Related Services,132A,facebook,07/03/2019,135288,60.00,0.00,facebook boosted post,Advertising - General
Wyre Council,http://opendatacommunities.org/doc/district-council/wyre,31/03/2019,People and Places,Cultural and Related Services,132A,facebook,07/03/2019,135290,90.00,0.00,facebook boosted post,Advertising - General
Wyre Council,http://opendatacommunities.org/doc/district-council/wyre,31/03/2019,People and Places,Cultural and Related Services,132A,facebook,07/03/2019,135292,82.35,0.00,facebook boosted post,Advertising - General
Wyre Council,http://opendatacommunities.org/doc/district-council/wyre,31/03/2019,People and Places,Cultural and Related Services,132A,facebook,07/03/2019,135294,84.60,0.00,facebook boosted post,Advertising - General
Wyre Council,http://opendatacommunities.org/doc/district-council/wyre,31/03/2019,People and Places,Environmental Services,132B,Mailchimp,07/03/2019,135301,59.36,0.00,Enews - green waste,Promotions - General
Wyre Council,http://opendatacommunities.org/doc/district-council/wyre,31/03/2019,People and Places,Environmental Services,132B,mailchimp,07/03/2019,135303,42.49,0.00,Mailchimp - green waste,Promotions - General
Wyre Council,http://opendatacommunities.org/doc/district-council/wyre,31/03/2019,People and Places,Support Services,135B,ISSUU,07/03/2019,135298,331.49,0.00,ISSUU subscription,Public Relations
Wyre Council,http://opendatacommunities.org/doc/district-council/wyre,31/03/2019,Policy and Performance,Central Services to the Public,131C,www.gov.uk,07/03/2019,135213,10.00,0.00,Will/grant redacted,Legal Fees
Wyre Council,http://opendatacommunities.org/doc/district-council/wyre,31/03/2019,Resources,Support Services,135B,THE LAW SOCIETY,07/03/2019,135221,368.00,0.00,Practising Certificate - redacted,Professional Fees Allowance
Wyre Council,http://opendatacommunities.org/doc/district-council/wyre,31/03/2019,Resources,Support Services,135B,ILEX TUTORIAL COLLEGE,07/03/2019,135223,364.00,0.00,Practising Certificate - redacted,Professional Fees Allowance
Wyre Council,http://opendatacommunities.org/doc/district-council/wyre,31/03/2019,Resources,Support Services,135B,THE LAW SOCIETY,07/03/2019,135225,368.00,0.00,Practising Certificate - redacted,Professional Fees Allowance
Wyre Council,http://opendatacommunities.org/doc/district-council/wyre,31/03/2019,Resources,Central Services to the Public,131C,www.gov.uk,07/03/2019,135227,10.00,0.00,Will / Probate - Roskell,Legal Fees
Wyre Council,http://opendatacommunities.org/doc/district-council/wyre,31/03/2019,Resources,Central Services to the Public,131C,www.gov.uk,07/03/2019,135229,10.00,0.00,Probate/Will - Wise,Legal Fees
Wyre Council,http://opendatacommunities.org/doc/district-council/wyre,31/03/2019,Resources,Central Services to the Public,131C,www.gov.uk,07/03/2019,135231,10.00,0.00,Request for Will for redacted,Legal Fees
Wyre Council,http://opendatacommunities.org/doc/district-council/wyre,31/03/2019,Resources,Central Services to the Public,131C,www.gov.uk,07/03/2019,135219,10.00,0.00,copy of will and grant for council tax for redacetd,Legal Fees
Wyre Council,http://opendatacommunities.org/doc/district-council/wyre,31/03/2019,Resources,Central Services to the Public,131C,www.gov.uk,07/03/2019,135215,10.00,0.00,Will/grant redacted,Legal Fees
Wyre Council,http://opendatacommunities.org/doc/district-council/wyre,31/03/2019,Resources,Central Services to the Public,131C,www.gov.uk,07/03/2019,135217,10.00,0.00,Will/GrantRonald Moss,Legal Fees
Wyre Council,http://opendatacommunities.org/doc/district-council/wyre,31/03/2019,Resources,Central Services to the Public,131C,www.gov.uk,07/03/2019,135211,10.00,0.00,Will / Grant  ,Legal Fees
Wyre Council,http://opendatacommunities.org/doc/district-council/wyre,31/03/2019,Resources,Central Services to the Public,131C,www.gov.uk,07/03/2019,135233,10.00,0.00,Will / Grant  ,Legal Fees
Wyre Council,http://opendatacommunities.org/doc/district-council/wyre,31/03/2019,Resources,Central Services to the Public,131C,www.gov.uk,07/03/2019,135243,10.00,0.00,copy of will Re  ,Legal Fees
Wyre Council,http://opendatacommunities.org/doc/district-council/wyre,31/03/2019,Resources,Central Services to the Public,131C,www.gov.uk,07/03/2019,135245,10.00,0.00,copy of Probate and Will ,Legal Fees
Wyre Council,http://opendatacommunities.org/doc/district-council/wyre,31/03/2019,Resources,Central Services to the Public,131C,GOV.UK,07/03/2019,135241,10.00,0.00,Will and Probate  ,Legal Fees
Wyre Council,http://opendatacommunities.org/doc/district-council/wyre,31/03/2019,Resources,Central Services to the Public,131C,www.gov.uk,07/03/2019,135239,10.00,0.00,copy of Grant  ,Legal Fees
Wyre Council,http://opendatacommunities.org/doc/district-council/wyre,31/03/2019,Resources,Central Services to the Public,131C,WWW.GOV.UK,07/03/2019,135237,10.00,0.00,Copy of Will/Grant  ,Legal Fees
Wyre Council,http://opendatacommunities.org/doc/district-council/wyre,31/03/2019,Resources,Central Services to the Public,131C,www.gov.uk,07/03/2019,135235,10.00,0.00,Will / Grant ,Legal Fees
Wyre Council,http://opendatacommunities.org/doc/district-council/wyre,31/03/2019,People and Places,Environmental Services,132B,AITCH,10/03/2019,135422,400.00,0.00,100 FLAT BAR 250MM /22MM HOLES,Materials and Consumables
Wyre Council,http://opendatacommunities.org/doc/district-council/wyre,31/03/2019,People and Places,Support Services,135B,THE SAFETY SUPPLY  COMPANY,10/03/2019,135406,45.25,0.00,HOROBIN 100MM/ 4INCH PVC AIR BAGDRAINSTOPPER WITH SCHRADER VALVE COMPLETE  WITH 1.5 PVC HOSE AND,Purchase of Tools or Equipment
Wyre Council,http://opendatacommunities.org/doc/district-council/wyre,31/03/2019,People and Places,Environmental Services,132B,SCREWFIX,10/03/2019,135398,8.32,0.00,Toilet Seat,Responsive Building Maintenance
Wyre Council,http://opendatacommunities.org/doc/district-council/wyre,31/03/2019,People and Places,Environmental Services,132B,CURRYS PC WORLD,10/03/2019,135420,18.75,0.00,PRESSURE WASHER,Cleaning Materials
Wyre Council,http://opendatacommunities.org/doc/district-council/wyre,31/03/2019,People and Places,Planning and Development Servs,132C,CURRYS PC WORLD,10/03/2019,135420,18.74,0.00,PRESSURE WASHER,Cleaning Materials
Wyre Council,http://opendatacommunities.org/doc/district-council/wyre,31/03/2019,People and Places,Highways,133B,BUILDERS SUPPLIES (WEST COAST) LTD,10/03/2019,135412,47.05,0.00,Plastic Frame,Maint. of Unadopted Assets - Engineers
Wyre Council,http://opendatacommunities.org/doc/district-council/wyre,31/03/2019,People and Places,Public Transport,133G,SCREWFIX,10/03/2019,135404,12.50,0.00,Galvansing Spray,Landing Stage Maintenance
Wyre Council,http://opendatacommunities.org/doc/district-council/wyre,31/03/2019,People and Places,Support Services,135B,POWERFIT PNEUMATIC & HYDRAULIC,10/03/2019,135410,8.57,0.00,Hose,Purchase of Tools or Equipment
Wyre Council,http://opendatacommunities.org/doc/district-council/wyre,31/03/2019,People and Places,Support Services,135B,ANDREW CURRAN,10/03/2019,135418,4.16,0.00,BIKE PUMP,Purchase of Tools or Equipment
Wyre Council,http://opendatacommunities.org/doc/district-council/wyre,31/03/2019,People and Places,Support Services,135B,THE SAFETY SUPPLY COMPANY,10/03/2019,135424,84.85,0.00,INFLATABLE PVC TESTING BAGS,Purchase of Tools or Equipment
Wyre Council,http://opendatacommunities.org/doc/district-council/wyre,31/03/2019,People and Places,Support Services,135B,BUILDERS SUPPLIES (WEST COAST) LTD,10/03/2019,135400,71.80,0.00,TIMBER,Routine Maintenance
Wyre Council,http://opendatacommunities.org/doc/district-council/wyre,31/03/2019,People and Places,Support Services,135B,HUWS GRAY LTD,10/03/2019,135408,270.00,0.00,Bench Slats,Materials and Consumables
Wyre Council,http://opendatacommunities.org/doc/district-council/wyre,31/03/2019,People and Places,Support Services,135B,SCREWFIX,23/04/2019,135416,18.30,0.00,SPRAY PAINT,Materials and Consumables
Wyre Council,http://opendatacommunities.org/doc/district-council/wyre,31/03/2019,People and Places,Support Services,135B,SCREWFIX,23/04/2019,135414,42.56,0.00,"PAINT, BRUSHES",Materials and Consumables
Wyre Council,http://opendatacommunities.org/doc/district-council/wyre,31/03/2019,People and Places,Support Services,135B,BUILDERS SUPPLIES (WEST COAST) LTD,10/03/2019,135396,14.00,0.00,Undercoat,Materials and Consumables
Wyre Council,http://opendatacommunities.org/doc/district-council/wyre,31/03/2019,People and Places,Highways,133B,BUILDERS SUPPLIES (WEST COAST) LTD,10/03/2019,135402,46.50,0.00,Post mix professional,Maint. of Unadopted Assets - Engineers
Wyre Council,http://opendatacommunities.org/doc/district-council/wyre,31/03/2019,People and Places,Cultural and Related Services,132A,ASDA STORES LTD,11/03/2019,135471,8.94,0.00,6 x cream 3 x Vimto,Kiosk stock
Wyre Council,http://opendatacommunities.org/doc/district-council/wyre,31/03/2019,People and Places,Cultural and Related Services,132A,BLACKPOOL COUNCIL,11/03/2019,135473,30.92,0.00,Extra bin collection,Refuse Collection
Wyre Council,http://opendatacommunities.org/doc/district-council/wyre,31/03/2019,People and Places,Cultural and Related Services,132A,Candor,11/03/2019,135475,519.15,0.00,2 X SEBO Hovers,Purchase of Tools or Equipment
Wyre Council,http://opendatacommunities.org/doc/district-council/wyre,31/03/2019,People and Places,Cultural and Related Services,132A,Mailchimp,11/03/2019,135481,11.92,0.00,Mailchimp Jan,Advertising - General
Wyre Council,http://opendatacommunities.org/doc/district-council/wyre,31/03/2019,People and Places,Planning and Development Servs,132C,Mailchimp,11/03/2019,135481,11.92,0.00,Mailchimp Jan,Other Contributions
Wyre Council,http://opendatacommunities.org/doc/district-council/wyre,31/03/2019,Resources,Corporate and Democratic Core,131A,POST OFFICE LTD,11/03/2019,135429,150.00,0.00,Long Service Award-Post Office One4all Gift Card-CL,Long Service Award
Wyre Council,http://opendatacommunities.org/doc/district-council/wyre,31/03/2019,Resources,Support Services,135B,Eventbrite,11/03/2019,135461,35.00,0.00,Eventbrite  SGSA Green Guide Briefing Session 1 place for redacted,Technical Training
Wyre Council,http://opendatacommunities.org/doc/district-council/wyre,31/03/2019,Resources,Support Services,135B,CIMA,11/03/2019,135453,115.00,0.00,CIMA subscription fees for redacted,Post Entry/Professional Training
Wyre Council,http://opendatacommunities.org/doc/district-council/wyre,31/03/2019,Resources,Planning and Development Servs,132C,AMAZON.CO.UK,11/03/2019,135467,139.92,0.00,Amazon order for 8 packs of 12 black frames for redacted,Event Hospitality
Wyre Council,http://opendatacommunities.org/doc/district-council/wyre,31/03/2019,Resources,Corporate and Democratic Core,131A,INFORMATION COMMISSIONER,11/03/2019,135455,40.00,0.00,ICO data protection fee for redacted,Data Protection
Wyre Council,http://opendatacommunities.org/doc/district-council/wyre,31/03/2019,Resources,Planning and Development Servs,132C,AMAZON.CO.UK,11/03/2019,135457,-69.97,0.00,Amazon refund re order for black frames only 4 packs delivered instead of 8,Event Hospitality
Wyre Council,http://opendatacommunities.org/doc/district-council/wyre,31/03/2019,Resources,Planning and Development Servs,132C,AMAZON.CO.UK,11/03/2019,135465,66.63,0.00,Amazon order for 4 packs of 12 frames for redacted,Event Hospitality
Wyre Council,http://opendatacommunities.org/doc/district-council/wyre,31/03/2019,Resources,Support Services,135B,VIRGIN RAIL GROUP LTD,11/03/2019,135459,76.45,0.00,Virgin Rail ticket forredacted St Annes to Birmingham Int on 7/03/19,Other Travelling Expenses
Wyre Council,http://opendatacommunities.org/doc/district-council/wyre,31/03/2019,Resources,Support Services,135B,VIRGIN RAIL GROUP LTD,11/03/2019,135463,42.00,0.00,Virgin Rail ticket for redacted 13/03/19 Kirkham to Birmingham return 15/03/19,Other Travelling Expenses
Wyre Council,http://opendatacommunities.org/doc/district-council/wyre,31/03/2019,Resources,Cultural and Related Services,132A,Facebook,11/03/2019,135431,10.00,0.00,Facebook advert- Temp Marsh Mill Supervisor,Special Events
Wyre Council,http://opendatacommunities.org/doc/district-council/wyre,31/03/2019,People and Places,Environmental Services,132B,AITCH TOOLS & FASTENERS LTD,24/03/2019,135937,396.00,0.00,polyester resin cartridgem20 hex full nut a2,Materials and Consumables
Wyre Council,http://opendatacommunities.org/doc/district-council/wyre,31/03/2019,People and Places,Public Transport,133G,AITCH,24/03/2019,135941,137.89,0.00,12   380ml Polyester Resin Cartridge &quot;o _ 6.00 1 SERDB00240 1  Dart Red Ten BGP-15 Diamon,Landing Stage Maintenance
Wyre Council,http://opendatacommunities.org/doc/district-council/wyre,31/03/2019,People and Places,Public Transport,133G,AITCH,24/03/2019,135941,135.66,0.00,12   380ml Polyester Resin Cartridge &quot;o _ 6.00 1 SERDB00240 1  Dart Red Ten BGP-15 Diamon,Repairs to Non-WBC Buildings
Wyre Council,http://opendatacommunities.org/doc/district-council/wyre,31/03/2019,People and Places,Support Services,135B,AITCH,24/03/2019,135941,62.41,0.00,12   380ml Polyester Resin Cartridge &quot;o _ 6.00 1 SERDB00240 1  Dart Red Ten BGP-15 Diamon,Materials and Consumables
Wyre Council,http://opendatacommunities.org/doc/district-council/wyre,31/03/2019,People and Places,Cultural and Related Services,132A,BUILDERS SUPPLIES,24/03/2019,135963,90.82,0.00,"2400 X 75  X 75mm. Incised Timber 4.99 EA 9.98 sPost Treated 800004573 pieces Grad ed�� \ \ ,\4 2-",Materials and Consumables
Wyre Council,http://opendatacommunities.org/doc/district-council/wyre,31/03/2019,People and Places,Cultural and Related Services,132A,lock shop,24/03/2019,135953,97.50,0.00,lock for stanah compound,Purchase of Tools or Equipment
Wyre Council,http://opendatacommunities.org/doc/district-council/wyre,31/03/2019,People and Places,Environmental Services,132B,BUILDERS SUPPLIES,24/03/2019,135949,7.00,0.00,20EA M8 X 60MM HEX HEAD COACH SCREW20 EA M10 X 74MM HEX HEAD COACH SCREW,Materials and Consumables
Wyre Council,http://opendatacommunities.org/doc/district-council/wyre,31/03/2019,People and Places,Environmental Services,132B,AITCH,24/03/2019,135945,393.86,0.00,300 M20 X 100 SQ PLATE WASHER100 M24 X 100 X 6SQ PLATE WASHERS,Materials and Consumables
Wyre Council,http://opendatacommunities.org/doc/district-council/wyre,31/03/2019,People and Places,Environmental Services,132B,AITCH,24/03/2019,135943,397.50,0.00,150 M20 X 300 HOLDING DOWN BOLTS,Materials and Consumables
Wyre Council,http://opendatacommunities.org/doc/district-council/wyre,31/03/2019,People and Places,Environmental Services,132B,AITCH,24/03/2019,135939,265.00,0.00,100 M20 X300 HOLDING DOWN BOLTS,Materials and Consumables
Wyre Council,http://opendatacommunities.org/doc/district-council/wyre,31/03/2019,People and Places,Public Transport,133G,SCREWFIX,24/03/2019,135965,66.65,0.00,UNION RETO 3V DOOR CLOSER 2 CLOSERS,Responsive Building Maintenance
Wyre Council,http://opendatacommunities.org/doc/district-council/wyre,31/03/2019,People and Places,Public Transport,133G,SCREWFIX,24/03/2019,135947,16.66,0.00,NO NONSENSE COMBI GUN,Landing Stage Maintenance
Wyre Council,http://opendatacommunities.org/doc/district-council/wyre,31/03/2019,People and Places,Public Transport,133G,REDMARSH ROOFING,24/03/2019,135951,164.37,0.00,9 4.2 5` T&amp;G BOARD4 DUR4 TORCH ON,Repairs to Non-WBC Buildings
Wyre Council,http://opendatacommunities.org/doc/district-council/wyre,31/03/2019,People and Places,Support Services,135B,SCREWFIX,24/03/2019,135957,99.99,0.00,DORGUARD FIRE DOOR RETAINER RED,Responsive Building Maintenance
Wyre Council,http://opendatacommunities.org/doc/district-council/wyre,31/03/2019,People and Places,Support Services,135B,WORKSHOP DIY,24/03/2019,135959,81.25,0.00,1160 641211571 3412,Responsive Building Maintenance
Wyre Council,http://opendatacommunities.org/doc/district-council/wyre,31/03/2019,People and Places,Support Services,135B,SCREWFIX,24/03/2019,135955,16.66,0.00,NO NONSENSE COMBI GUN,Purchase of Tools or Equipment
Wyre Council,http://opendatacommunities.org/doc/district-council/wyre,31/03/2019,People and Places,Support Services,135B,BUILDERS SUPPLIES,24/03/2019,135961,19.01,0.00,1 EA 5LT ONE COAT FENCELIFE TUDOR BLACK OAK RONSEAL22 X 150MM TANTALISED SAWN CARCASSING,Materials and Consumables
Wyre Council,http://opendatacommunities.org/doc/district-council/wyre,31/03/2019,People and Places,Planning and Development Servs,132C,PAYCAPITA .COM,25/03/2019,135998,410.00,0.00,MOT SLOTS,Purchase of Tools or Equipment
Wyre Council,http://opendatacommunities.org/doc/district-council/wyre,31/03/2019,People and Places,Support Services,135B,WORLD OF HEDGES,25/03/2019,135979,31.25,0.00,25 HAWTHORN WHIPS,Materials and Consumables
Wyre Council,http://opendatacommunities.org/doc/district-council/wyre,31/03/2019,People and Places,Environmental Services,132B,AITCH,25/03/2019,135969,364.50,0.00,200 M24 X 100 X 6 SQ PLATE WASHERS 50 M20 X 300 HOLDING DOWN BOLTS,Materials and Consumables
Wyre Council,http://opendatacommunities.org/doc/district-council/wyre,31/03/2019,People and Places,Environmental Services,132B,DVLA,25/03/2019,136000,233.50,0.00,DVLA VEHICLE TAX PO12 HPE,Licences/MOT Certificates
Wyre Council,http://opendatacommunities.org/doc/district-council/wyre,31/03/2019,People and Places,Parking Services,133F,KEYLINE,25/03/2019,135973,85.00,0.00,1 WEKIN DUCTILE IRON STRAIGHT BAR,"Paths, Roads and Car Park Mtnce Annual"
Wyre Council,http://opendatacommunities.org/doc/district-council/wyre,31/03/2019,People and Places,Public Transport,133G,AITCH,25/03/2019,135971,165.83,0.00,10 SIKAFLEX 600ML SAUSAGE FOIL CONCRETE23 M X 100 CUP SQ HEX30 MB 90 CUP SQ HEX,Landing Stage Maintenance
Wyre Council,http://opendatacommunities.org/doc/district-council/wyre,31/03/2019,People and Places,Support Services,135B,DVLA,25/03/2019,136002,252.50,0.00,VEHICLE TAX PE07 KNH,Licences/MOT Certificates
Wyre Council,http://opendatacommunities.org/doc/district-council/wyre,31/03/2019,People and Places,Support Services,135B,AMAZON UK,25/03/2019,136004,14.48,0.00,1 MASO 8PSCS SIDE MARKER LIGHTS 12V /24V TRAILER LIGHTS UNIVERSAL INDICATOR OF POSITION LAMPS LED F,Daywork Materials (Excl.Tyres)
Wyre Council,http://opendatacommunities.org/doc/district-council/wyre,31/03/2019,People and Places,Support Services,135B,WILL CURRAN MOTORS,25/03/2019,136006,19.06,0.00,FROZEN WHITE AEROSOL,Materials and Consumables
Wyre Council,http://opendatacommunities.org/doc/district-council/wyre,31/03/2019,People and Places,Environmental Services,132B,THE LOCK SHOP,25/03/2019,135975,20.83,0.00,LOCKS,Materials and Consumables
Wyre Council,http://opendatacommunities.org/doc/district-council/wyre,31/03/2019,People and Places,Highways,133B,BUILDERS SUPPLIES,25/03/2019,135985,5.18,0.00,2 EA DRILL BIT LOOSE 9.0MM,"Street Furniture, Memorials - (Non BM)"
Wyre Council,http://opendatacommunities.org/doc/district-council/wyre,31/03/2019,People and Places,Support Services,135B,HUWS GRAY,25/03/2019,135983,84.29,0.00,11 SAWN TANTALISED TREATED TIMBER6 SAWN TANTALISED TREATED TIMBER2 SAWN TANTALISED TREATED TIMBER,Routine Maintenance
Wyre Council,http://opendatacommunities.org/doc/district-council/wyre,31/03/2019,People and Places,Support Services,135B,HUWS GRAY,25/03/2019,135977,324.00,0.00,36 HARDWOOD SLATTS,Materials and Consumables
Wyre Council,http://opendatacommunities.org/doc/district-council/wyre,31/03/2019,People and Places,Environmental Services,132B,Euro Car Parts,25/03/2019,136053,50.00,0.00,Cross DO NS Mirror Polo 02-05 Elec,Daywork Materials (Excl.Tyres)
Wyre Council,http://opendatacommunities.org/doc/district-council/wyre,31/03/2019,People and Places,Support Services,135B,Screwfix,23/04/2019,135981,6.57,0.00,Ring on plate,Materials and Consumables
Wyre Council,http://opendatacommunities.org/doc/district-council/wyre,31/03/2019,People and Places,Support Services,135B,Cornthwaite Agricultural Ltd,27/03/2019,136164,180.00,0.00,tractor stuck in 4wd - travel to site and investigation,Daywork Materials (Excl.Tyres)
Wyre Council,http://opendatacommunities.org/doc/district-council/wyre,31/03/2019,People and Places,Support Services,135B,Proximo,27/03/2019,136166,1.00,0.00,Proximo - vehicle hire,Materials and Consumables
Wyre Council,http://opendatacommunities.org/doc/district-council/wyre,31/03/2019,People and Places,Cultural and Related Services,132A,Screwfix.com,29/03/2019,136303,708.32,0.00,1x Mitre Saw - 699.991x Mitre Saw Stand - 149.99(above for Workshop/Craft Activities),Purchase of Tools or Equipment
Wyre Council,http://opendatacommunities.org/doc/district-council/wyre,31/03/2019,People and Places,Cultural and Related Services,132A,HUWS GRAY LTD,29/03/2019,136293,19.97,0.00,Silicone Sealer - 4.862x White Plastic Angle - 13.7819x Penny Washers M10 - 1.33(above for Ros,Materials and Consumables
Wyre Council,http://opendatacommunities.org/doc/district-council/wyre,31/03/2019,People and Places,Cultural and Related Services,132A,GARSTANG TIMBER & PLYWOOD LTD,29/03/2019,136301,161.64,0.00,100x Hedge Stakes - 158.002x Tree Stake - 3.64(above for use at Brock Station &amp; Catterall in,Materials and Consumables
Wyre Council,http://opendatacommunities.org/doc/district-council/wyre,31/03/2019,People and Places,Cultural and Related Services,132A,HUWS GRAY LTD,29/03/2019,136299,21.27,0.00,1x Gate Fastner - 18.798x Nuts &amp; bolts - 2.1616x Washers - 0.32(above for Gate at WECP and,Materials and Consumables
Wyre Council,http://opendatacommunities.org/doc/district-council/wyre,31/03/2019,People and Places,Cultural and Related Services,132A,Fast Fix Workshop Ltd,29/03/2019,136297,15.30,0.00,4x large balls String - 18.36(above for Birdfeeder Craft Event),Materials and Consumables
Wyre Council,http://opendatacommunities.org/doc/district-council/wyre,31/03/2019,People and Places,Cultural and Related Services,132A,Fast Fix Workshop Ltd,29/03/2019,136295,11.97,0.00,3x Lengths Beading - 6.872x Packs Small Staples - 3.984x Packs Panel Pins - 4.76(Above for Bir,Materials and Consumables
Wyre Council,http://opendatacommunities.org/doc/district-council/wyre,31/03/2019,People and Places,Cultural and Related Services,132A,J A JONES & SONS,29/03/2019,136312,7.67,0.00,1x Bundle of Alder Whips - 9.20(above for WECP Memorial Trees),Conservation
Wyre Council,http://opendatacommunities.org/doc/district-council/wyre,31/03/2019,People and Places,Cultural and Related Services,132A,Screwfix Direct Ltd,29/03/2019,136310,31.65,0.00,Brackets and Uprights for shelving at WECP Depot workshop - 37.98,Materials and Consumables
Wyre Council,http://opendatacommunities.org/doc/district-council/wyre,31/03/2019,People and Places,Cultural and Related Services,132A,HUWS GRAY LTD,29/03/2019,136306,29.98,0.00,2x Fence Preservative - 35.98(above for Preserving Wooden structures around WECP),Materials and Consumables
Wyre Council,http://opendatacommunities.org/doc/district-council/wyre,31/03/2019,People and Places,Cultural and Related Services,132A,THE PLANT PLACE,29/03/2019,136314,50.19,0.00,Compost - 10.00Seed Compost - 3.29Chicken Manure - 13.99No Slug Wool Pellets - 6.99Bulbs - 5,Conservation
Wyre Council,http://opendatacommunities.org/doc/district-council/wyre,31/03/2019,People and Places,Cultural and Related Services,132A,C & C SUPPLIES COLLINSON LTD,29/03/2019,136308,11.00,0.00,"2x Bulk Bags single use - 11.00(above for use during conservation work at Kepple Lane, Garstang)",Materials and Consumables
Wyre Council,http://opendatacommunities.org/doc/district-council/wyre,31/03/2019,People and Places,Environmental Services,132B,youngmans ladder,29/03/2019,136349,167.55,0.00,New ladders supplied to a redacted,Materials and Consumables
Wyre Council,http://opendatacommunities.org/doc/district-council/wyre,31/03/2019,People and Places,Support Services,135B,KITA H LTD,29/03/2019,136347,432.96,0.00,18V HIGH TORQUE WRENCH KIT,Purchase of Tools or Equipment
Wyre Council,http://opendatacommunities.org/doc/district-council/wyre,31/03/2019,People and Places,Environmental Services,132B,ASDA STORES LTD,29/03/2019,136364,17.52,0.00,Volunteer Refreshments,Volunteer Expenses
Wyre Council,http://opendatacommunities.org/doc/district-council/wyre,31/03/2019,People and Places,Cultural and Related Services,132A,facebook,29/03/2019,136354,119.14,0.00,Facebook boosted posts,Advertising - General
Wyre Council,http://opendatacommunities.org/doc/district-council/wyre,31/03/2019,People and Places,Cultural and Related Services,132A,facebook,29/03/2019,136356,125.00,0.00,facebook boosted posts,Advertising - General
Wyre Council,http://opendatacommunities.org/doc/district-council/wyre,31/03/2019,People and Places,Support Services,135B,Amazon,29/03/2019,136344,13.94,0.00,Chair support,Purchase of Tools or Equipment
Wyre Council,http://opendatacommunities.org/doc/district-council/wyre,31/03/2019,Resources,Planning and Development Servs,132C,POST OFFICE LTD,29/03/2019,136358,150.00,0.00,Long Service award- Post Office one4all gift card- SB,Long Service Award
Wyre Council,http://opendatacommunities.org/doc/district-council/wyre,31/03/2019,Resources,Central Services to the Public,131C,www.gov.uk,29/03/2019,136369,10.00,0.00,Will / Grant ,Legal Fees
Wyre Council,http://opendatacommunities.org/doc/district-council/wyre,31/03/2019,Resources,Cultural and Related Services,132A,Indeed,29/03/2019,136362,50.00,0.00,February 2019 Advertising on Indeed,Special Events
Wyre Council,http://opendatacommunities.org/doc/district-council/wyre,31/03/2019,Resources,Support Services,135B,LinkedIn,29/03/2019,136360,79.12,0.00,Insurance Officer post on LinkedIn,Advertising - Recruitment
Wyre Council,http://opendatacommunities.org/doc/district-council/wyre,31/03/2019,Resources,Support Services,135B,Indeed,29/03/2019,136362,100.00,0.00,February 2019 Advertising on Indeed,Advertising - Recruitment
